bitfinex/quotes_SOLUSD_20241216
["timestamp","ask_amount","ask_price","bid_price","bid_amount"]
[1734380850132,20.0,216.95,216.9,34.53456114]
[1734380850709,20.0,216.95,216.92,10.75767714]
[1734380851512,27.9,216.97,216.93,23.776884]
[1734380853711,20.0,216.96,216.93,23.776884]
[1734380855127,10.75767714,216.95,216.85,6.58362896]
[1734380855320,10.75767714,216.95,216.83,1.5624]
[1734380855321,10.75767714,216.95,216.86,10.75767714]
[1734380856517,10.75767714,216.95,216.87,23.776884]
[1734380859523,10.75767714,216.95,216.87,10.75767714]
[1734380859741,27.9,216.94,216.87,10.75767714]
[1734380862649,27.9,216.93,216.87,10.75767714]
[1734380863243,10.75767714,216.92,216.85,34.53456114]
[1734380863639,27.9,216.93,216.85,34.53456114]
[1734380863640,27.9,216.93,216.87,10.75767714]
[1734380865026,27.9,216.93,216.88,23.776884]
[1734380865226,27.9,216.93,216.89,10.75767714]
[1734380865634,38.65767714,216.95,216.89,10.75767714]
[1734380866323,10.75767714,216.97,216.9,23.776884]
[1734380866627,20.0,216.98,216.92,23.776884]
[1734380866945,27.9,216.99,216.91,10.75767714]
[1734380866946,27.9,216.99,216.94,23.776884]
[1734380867140,16.76667714,217.02,216.95,10.75767714]
[1734380867445,16.76667714,217.02,216.96,23.776884]
[1734380867951,27.9,217.02,216.96,23.776884]
[1734380869147,27.9,217.02,216.96,34.53456114]
[1734380869326,27.9,217.03,216.97,10.75767714]
[1734380869528,27.9,217.03,216.98,23.776884]
[1734380869749,27.9,217.05,216.98,34.53456114]
[1734380869941,27.9,217.05,216.99,10.75767714]
[1734380870930,41.42671526,217.09,217.02,10.75767714]
[1734380871146,10.75767714,217.08,217.01,10.75767714]
[1734380872543,27.9,217.12,217.03,23.776884]
[1734380872739,20.0,217.09,217.03,34.53456114]
[1734380872941,27.9,217.09,217.03,34.53456114]
[1734380873357,5.0,217.18,217.01,1.5334]
[1734380873358,27.9,217.12,217.06,10.75767714]
[1734380873671,38.65767714,217.12,217.06,23.776884]
[1734380874759,27.9,217.12,217.06,34.53456114]
[1734380875226,10.75767714,217.14,217.06,34.53456114]
[1734380875426,10.75767714,217.14,217.07,10.75767714]
[1734380875661,10.75767714,217.14,217.08,23.776884]
[1734380876358,27.9,217.15,217.08,23.776884]
[1734380876359,10.75767714,217.12,217.08,23.776884]
[1734380876555,10.75767714,217.1,217.05,23.776884]
[1734380876748,10.75767714,217.1,217.04,23.776884]
[1734380877259,10.75767714,217.11,217.04,23.776884]
[1734380877455,27.9,217.15,217.06,10.75767714]
[1734380877656,10.75767714,217.14,217.08,23.776884]
[1734380877857,38.65767714,217.15,217.08,34.53456114]
[1734380878644,38.65767714,217.15,217.08,23.776884]
[1734380879165,10.75767714,217.13,217.08,23.776884]
[1734380879532,10.75767714,217.13,217.07,23.902374]
[1734380879735,10.75767714,217.14,217.07,34.66005114]
[1734380880058,38.65767714,217.15,217.07,34.66005114]
[1734380880260,16.78217502,217.14,217.07,40.68454902]
[1734380880559,44.68217502,217.15,217.07,40.68454902]
[1734380880755,16.78217502,217.15,217.07,40.68454902]
[1734380881061,16.78217502,217.15,217.09,23.776884]
[1734380881263,16.78217502,217.17,217.11,23.776884]
[1734380881979,27.9,217.19,217.13,23.776884]
[1734380881980,44.68217502,217.19,217.13,23.776884]
[1734380882142,27.9,217.19,217.13,40.55905902]
[1734380882647,16.78217502,217.22,217.15,23.776884]
[1734380882846,44.68217502,217.24,217.17,23.776884]
[1734380883047,44.68217502,217.24,217.17,40.55905902]
[1734380883650,16.78217502,217.25,217.19,23.776884]
[1734380883855,16.78217502,217.26,217.19,40.55905902]
[1734380884359,16.78217502,217.24,217.17,40.55905902]
[1734380886872,16.78217502,217.26,217.18,16.78217502]
[1734380887067,27.9,217.27,217.22,16.78217502]
[1734380887268,16.78217502,217.3,217.23,40.55905902]
[1734380888673,27.9,217.3,217.23,40.55905902]
[1734380889275,27.9,217.3,217.24,16.78217502]
[1734380889654,44.68217502,217.33,217.26,16.78217502]
[1734380889858,27.9,217.33,217.27,40.55905902]
[1734380890274,27.9,217.33,217.29,23.776884]
[1734380890451,0.5483133,217.34,217.29,23.776884]
[1734380892492,0.5483133,217.34,217.29,40.55905902]
[1734380892977,0.5483133,217.34,217.31,16.78217502]
[1734380893359,0.5483133,217.34,217.32,16.78217502]
[1734380898156,0.5483133,217.34,217.33,40.55905902]
[1734380899677,0.5483133,217.34,217.29,23.776884]
[1734380899979,0.5483133,217.34,217.28,18.41467502]
[1734380901055,0.5483133,217.34,217.33,40.55905902]
[1734380901255,0.5483133,217.34,217.33,54.51248468]
[1734380902654,0.5483133,217.34,217.33,38.42022163]
[1734380902861,0.5483133,217.34,217.33,54.51248468]
[1734380903376,0.5483133,217.34,217.33,54.38699468]
[1734380903781,0.5483133,217.34,217.33,47.80336572]
[1734380906170,0.5483133,217.34,217.28,8.90614889]
[1734380906171,0.5483133,217.34,217.29,16.78217502]
[1734380906363,0.5483133,217.34,217.28,8.21612896]
[1734380906563,16.78217502,217.32,217.24,16.78217502]
[1734380907085,16.78217502,217.32,217.25,16.78217502]
[1734380907493,16.78217502,217.32,217.24,16.90766502]
[1734380907679,16.78217502,217.32,217.25,40.55905902]
[1734380907996,17.33048832,217.34,217.27,23.776884]
[1734380908199,0.5483133,217.34,217.28,10.72093005]
[1734380908396,0.5483133,217.34,217.27,23.776884]
[1734380908397,0.5483133,217.34,217.3,23.776884]
[1734380909999,0.5483133,217.34,217.29,16.74908841]
[1734380910205,0.5483133,217.34,217.3,23.776884]
[1734380912382,0.5483133,217.34,217.3,16.74908841]
[1734380912581,0.5483133,217.34,217.32,16.74908841]
[1734380912997,0.5483133,217.34,217.31,16.74908841]
[1734380913310,0.5483133,217.34,217.32,23.776884]
[1734380913795,0.5483133,217.34,217.31,23.776884]
[1734380914577,0.5483133,217.34,217.31,40.52597241]
[1734380915192,0.5483133,217.34,217.27,7.2443067]
[1734380915193,0.5483133,217.34,217.33,40.52597241]
[1734380916808,0.5483133,217.34,217.33,49.42796911]
[1734380917018,0.5483133,217.34,217.33,56.01159807]
[1734380920215,0.5483133,217.34,217.33,32.10922407]
[1734380921293,0.5483133,217.34,217.33,47.77027911]
[1734380922805,0.5483133,217.34,217.28,8.21202896]
[1734380922806,17.29740171,217.34,217.28,8.21202896]
[1734380922985,0.5483133,217.34,217.28,16.74908841]
[1734380924082,0.5483133,217.34,217.29,23.776884]
[1734380925387,0.5483133,217.34,217.29,16.74908841]
[1734380925697,0.5483133,217.34,217.28,16.74908841]
[1734380926088,0.5483133,217.34,217.29,23.776884]
[1734380926908,0.5483133,217.34,217.26,7.2443067]
[1734380926909,17.29740171,217.34,217.27,40.52597241]
[1734380927720,0.5483133,217.34,217.3,23.776884]
[1734380928406,0.5483133,217.34,217.28,40.52597241]
[1734380929587,0.5483133,217.34,217.28,23.776884]
[1734380930794,16.74908841,217.32,217.28,23.776884]
[1734380930996,16.74908841,217.31,217.28,23.776884]
[1734380931209,0.5483133,217.34,217.23,16.74908841]
[1734380931210,16.74908841,217.3,217.23,16.74908841]
[1734380931414,16.74908841,217.27,217.21,7.2443067]
[1734380931794,16.74908841,217.26,217.21,7.2443067]
[1734380932017,16.74908841,217.25,217.21,7.2443067]
[1734380932386,16.74908841,217.26,217.21,7.2443067]
[1734380932592,31.30428841,217.28,217.21,7.2443067]
[1734380932818,16.74908841,217.26,217.21,7.2443067]
[1734380933416,14.5552,217.28,217.21,7.2443067]
[1734380933621,8.3,217.28,217.22,16.74908841]
[1734380934117,8.3,217.28,217.25,16.74908841]
[1734380934416,16.74908841,217.33,217.26,23.776884]
[1734380934932,16.74908841,217.32,217.26,23.776884]
[1734380935309,8.4477133,217.34,217.26,23.776884]
[1734380935310,16.74908841,217.33,217.27,23.776884]
[1734380936991,0.5483133,217.34,217.28,16.74908841]
[1734380937196,0.5483133,217.34,217.29,23.776884]
[1734380937718,17.29740171,217.34,217.29,23.776884]
[1734380938114,17.29740171,217.34,217.28,23.776884]
[1734380938897,16.74908841,217.32,217.28,23.776884]
[1734380939099,16.74908841,217.32,217.26,23.776884]
[1734380939722,16.74908841,217.33,217.26,16.74908841]
[1734380940227,16.74908841,217.33,217.27,23.776884]
[1734380941120,16.74908841,217.28,217.27,23.776884]
[1734380941506,16.74908841,217.29,217.27,23.776884]
[1734380941699,16.74908841,217.28,217.27,23.776884]
[1734380943301,16.74908841,217.28,217.24,23.776884]
[1734380943511,16.74908841,217.28,217.19,6.5981]
[1734380943512,16.74908841,217.25,217.16,18.26388841]
[1734380943700,16.74908841,217.23,217.16,25.50819511]
[1734380943901,16.74908841,217.24,217.17,16.74908841]
[1734380944822,16.74908841,217.23,217.16,25.50819511]
[1734380945202,16.74908841,217.24,217.17,16.74908841]
[1734380945402,16.74908841,217.24,217.18,23.776884]
[1734380948001,16.74908841,217.23,217.18,23.776884]
[1734380948201,16.74908841,217.24,217.17,40.52597241]
[1734380948522,16.74908841,217.24,217.12,16.74908841]
[1734380948523,16.74908841,217.19,217.12,16.74908841]
[1734380948931,16.74908841,217.18,217.11,18.41108841]
[1734380950122,16.74908841,217.18,217.11,1.662]
[1734380950443,16.74908841,217.17,217.11,1.662]
[1734380950650,16.74908841,217.16,217.11,1.662]
[1734380951153,16.74908841,217.14,217.08,6.58362896]
[1734380951438,16.74908841,217.12,217.05,25.65539511]
[1734380951645,16.74908841,217.11,217.05,8.9063067]
[1734380952985,16.74908841,217.07,216.98,1.5331]
[1734380953266,16.74908841,217.03,216.98,8.7774067]
[1734380953430,16.74908841,217.04,216.98,8.7774067]
[1734380953855,16.74908841,217.03,216.98,8.7774067]
[1734380955165,16.74908841,217.04,216.98,8.7774067]
[1734380955363,16.74908841,217.03,216.98,8.7774067]
[1734380957472,16.74908841,217.05,216.98,8.7774067]
[1734380957666,16.74908841,217.02,216.98,8.7774067]
[1734380957877,16.74908841,217.03,216.98,8.7774067]
[1734380959995,16.74908841,217.03,216.98,7.2443067]
[1734380960197,8.312,217.11,216.98,7.2443067]
[1734380960198,16.74908841,217.01,216.98,7.2443067]
[1734380960490,16.74908841,217.01,216.94,6.58362896]
[1734380960491,16.74908841,217.0,216.95,23.776884]
[1734380960860,16.74908841,217.0,216.94,23.776884]
[1734380961060,16.74908841,216.98,216.94,23.776884]
[1734380961259,16.74908841,217.01,216.94,40.52597241]
[1734380961481,25.04908841,217.03,216.96,16.74908841]
[1734380961686,8.3,217.03,216.97,40.52597241]
[1734380962376,25.04908841,217.03,216.96,16.74908841]
[1734380962693,16.74908841,217.04,216.98,23.776884]
[1734380963501,16.74908841,217.03,216.98,23.776884]
[1734380963659,16.74908841,217.04,216.97,40.52597241]
[1734380966601,16.74908841,217.09,217.02,40.52597241]
[1734380966754,25.04908841,217.1,217.03,23.776884]
[1734380967574,16.74908841,217.09,217.03,23.776884]
[1734380968627,16.74908841,217.08,217.03,23.776884]
[1734380968792,16.74908841,217.07,217.03,23.776884]
[1734380971505,16.74908841,217.08,217.03,23.776884]
[1734380971708,16.74908841,217.1,217.03,40.52597241]
[1734380972018,16.74908841,217.09,217.03,23.776884]
[1734380975800,17.02708841,217.09,217.03,23.776884]
[1734380976881,16.74908841,217.08,217.03,23.776884]
[1734380978298,17.02708841,217.09,217.03,23.776884]
[1734380978641,0.278,217.09,217.08,40.52597241]
[1734380978777,0.278,217.09,217.08,47.77027911]
[1734380979891,0.278,217.09,217.08,55.99950807]
[1734380980089,0.278,217.09,217.08,56.69017204]
[1734380983223,0.278,217.09,217.08,56.81566204]
[1734380984018,0.278,217.09,217.08,56.12499807]
[1734380986419,0.278,217.09,217.08,15.47353566]
[1734380986620,0.278,217.09,217.08,8.8899067]
[1734380987727,0.278,217.09,217.08,32.6667907]
[1734380987926,0.278,217.09,217.08,49.41587911]
[1734380989019,0.278,217.09,217.08,55.99950807]
[1734380989230,16.74908841,217.18,217.08,55.9677646]
[1734380989231,16.52708841,217.18,217.08,55.9677646]
[1734380989521,16.52708841,217.18,217.11,23.776884]
[1734380991223,16.74908841,217.17,217.11,23.776884]
[1734380991529,16.74908841,217.17,217.1,40.52597241]
[1734380991822,16.74908841,217.18,217.1,40.52597241]
[1734380992213,16.74908841,217.18,217.1,40.02597241]
[1734380992820,16.74908841,217.17,217.1,40.02597241]
[1734380993124,16.74908841,217.16,217.1,23.276884]
[1734380995401,16.74908841,217.17,217.1,40.02597241]
[1734380996031,16.74908841,217.17,217.1,23.276884]
[1734380998516,10.73735402,217.17,217.1,23.276884]
[1734380998913,10.73735402,217.15,217.1,23.276884]
[1734380999114,2.82110776,217.23,217.1,23.276884]
[1734380999115,10.73735402,217.13,217.1,23.276884]
[1734381001412,10.73735402,217.11,217.09,7.24201411]
[1734381001620,10.73735402,217.11,217.03,8.19162896]
[1734381001912,10.73735402,217.08,217.03,8.19162896]
[1734381002957,10.73735402,217.08,217.03,6.58362896]
[1734381003108,10.73735402,217.1,217.03,13.82564307]
[1734381004233,16.78720646,217.1,217.03,13.82564307]
[1734381004413,16.78720646,217.1,217.04,23.776884]
[1734381005028,16.78720646,217.12,217.06,23.776884]
[1734381005230,14.3646,217.18,217.1,16.78720646]
[1734381005455,16.78720646,217.18,217.11,23.776884]
[1734381005838,16.78720646,217.18,217.11,40.56409046]
[1734381006036,16.78720646,217.19,217.12,16.78720646]
[1734381006254,16.78720646,217.18,217.11,16.78720646]
[1734381006642,16.78720646,217.18,217.12,23.776884]
[1734381006837,8.3,217.21,217.12,23.776884]
[1734381006838,16.78720646,217.19,217.12,16.78720646]
[1734381007045,16.78720646,217.19,217.13,23.776884]
[1734381007862,16.78720646,217.18,217.13,23.776884]
[1734381008044,16.78720646,217.18,217.12,23.776884]
[1734381008352,16.78720646,217.16,217.1,23.776884]
[1734381008561,16.78720646,217.17,217.11,23.776884]
[1734381010054,16.78720646,217.16,217.09,40.56409046]
[1734381010252,16.78720646,217.13,217.09,23.776884]
[1734381010453,16.78720646,217.14,217.09,23.776884]
[1734381011133,16.78720646,217.17,217.11,23.776884]
[1734381011435,25.08720646,217.18,217.11,16.78720646]
[1734381012054,16.78720646,217.17,217.11,23.776884]
[1734381012438,16.78720646,217.14,217.09,31.01889811]
[1734381012638,16.78720646,217.15,217.09,31.01889811]
[1734381012841,2.81517183,217.22,217.08,18.33050646]
[1734381012842,16.78720646,217.13,217.08,1.5433]
[1734381013264,16.78720646,217.11,217.04,16.78720646]
[1734381014344,16.78720646,217.1,217.03,7.24201411]
[1734381014961,16.78720646,217.1,217.03,24.02922057]
[1734381015635,16.78720646,217.1,217.04,23.776884]
[1734381015836,16.78720646,217.12,217.04,40.56409046]
[1734381016052,8.3,217.13,217.06,16.78720646]
[1734381016246,8.3,217.13,217.07,40.56409046]
[1734381016452,8.3,217.13,217.07,47.80610457]
[1734381017363,16.78720646,217.16,217.09,16.78720646]
[1734381017561,16.78720646,217.16,217.1,23.776884]
[1734381017769,16.78720646,217.17,217.1,40.56409046]
[1734381017952,16.77707291,217.16,217.08,23.776884]
[1734381018466,16.77707291,217.17,217.08,31.01889811]
[1734381018653,16.77707291,217.17,217.09,7.24201411]
[1734381018853,16.77707291,217.17,217.1,23.776884]
[1734381019566,16.77707291,217.18,217.1,25.353484]
[1734381021341,16.77707291,217.19,217.1,25.353484]
[1734381021560,16.77707291,217.18,217.1,25.353484]
[1734381022069,16.77707291,217.17,217.1,25.353484]
[1734381023554,16.77707291,217.18,217.1,25.353484]
[1734381024268,16.77707291,217.17,217.1,25.353484]
[1734381024651,16.77707291,217.18,217.11,0.12549]
[1734381025865,8.3,217.23,217.11,0.12549]
[1734381025866,16.77707291,217.17,217.11,0.12549]
[1734381026245,10.73654996,217.18,217.11,0.12549]
[1734381027775,10.73654996,217.19,217.11,7.36750411]
[1734381027974,10.73654996,217.19,217.12,23.776884]
[1734381028169,10.73654996,217.18,217.12,23.776884]
[1734381032371,8.3,217.28,217.16,0.12549]
[1734381032676,10.73654996,217.26,217.18,23.776884]
[1734381032877,10.73654996,217.26,217.18,31.01889811]
[1734381033176,10.73654996,217.26,217.19,0.12549]
[1734381033375,10.73654996,217.27,217.19,0.12549]
[1734381033977,10.73654996,217.27,217.19,7.36750411]
[1734381034160,8.3,217.3,217.19,7.36750411]
[1734381034161,16.76062501,217.29,217.21,0.12549]
[1734381034376,16.76062501,217.28,217.21,0.12549]
[1734381036469,16.76062501,217.26,217.2,31.01889811]
[1734381036678,16.76062501,217.25,217.2,31.01889811]
[1734381036872,16.76062501,217.26,217.2,31.01889811]
[1734381037266,16.76062501,217.27,217.2,31.01889811]
[1734381038187,16.76062501,217.28,217.2,31.01889811]
[1734381038580,16.76062501,217.27,217.2,31.01889811]
[1734381040188,16.76062501,217.28,217.2,31.01889811]
[1734381040980,16.76062501,217.3,217.21,0.12549]
[1734381041178,16.76062501,217.3,217.23,0.12549]
[1734381041366,8.8483133,217.34,217.22,7.24201411]
[1734381041367,20.0,217.32,217.24,8.80951411]
[1734381041584,36.76062501,217.32,217.24,8.80951411]
[1734381041776,16.76062501,217.28,217.24,8.80951411]
[1734381041978,16.76062501,217.25,217.21,6.58362896]
[1734381042181,16.76062501,217.24,217.21,6.58362896]
[1734381042382,16.76062501,217.22,217.19,1.5675]
[1734381042589,16.76062501,217.21,217.18,7.24201411]
[1734381042989,16.76062501,217.19,217.18,7.24201411]
[1734381043190,16.76062501,217.19,217.14,1.5675]
[1734381043572,16.76062501,217.18,217.14,1.5675]
[1734381043894,16.76062501,217.19,217.14,1.5675]
[1734381052979,25.06062501,217.22,217.14,1.5675]
[1734381053172,16.76062501,217.21,217.14,8.80951411]
[1734381053578,25.06062501,217.22,217.14,8.80951411]
[1734381053779,8.3,217.22,217.15,23.776884]
[1734381054701,8.3,217.22,217.15,31.01889811]
[1734381054911,10.73074562,217.24,217.15,31.01889811]
[1734381055321,10.73074562,217.24,217.16,0.12549]
[1734381055606,10.73074562,217.26,217.17,23.776884]
[1734381055817,8.3,217.33,217.19,23.776884]
[1734381055989,10.73074562,217.29,217.2,7.24201411]
[1734381056679,10.73074562,217.28,217.2,7.24201411]
[1734381057784,10.73074562,217.27,217.2,7.24201411]
[1734381058608,10.73074562,217.28,217.2,7.24201411]
[1734381058984,10.73074562,217.27,217.2,7.24201411]
[1734381060781,10.73074562,217.24,217.2,7.24201411]
[1734381060985,10.73074562,217.21,217.14,1.5675]
[1734381061188,10.73074562,217.17,217.14,1.5675]
[1734381061502,10.73074562,217.18,217.14,1.5675]
[1734381062080,8.3,217.24,217.14,8.80951411]
[1734381062081,10.73074562,217.2,217.14,8.80951411]
[1734381066796,10.73074562,217.22,217.14,8.80951411]
[1734381066987,10.73074562,217.23,217.15,31.01889811]
[1734381077116,10.73074562,217.22,217.15,31.01889811]
[1734381077421,10.73074562,217.19,217.14,1.5675]
[1734381077789,10.73074562,217.16,217.11,6.0572]
[1734381079114,10.73074562,217.12,217.1,8.80751411]
[1734381079305,10.73074562,217.11,217.07,6.58362896]
[1734381079507,10.73074562,217.1,217.04,8.80751411]
[1734381080609,20.0,217.16,217.04,8.80751411]
[1734381080808,10.73074562,217.11,217.05,23.776884]
[1734381081013,10.73074562,217.11,217.04,8.80751411]
[1734381081331,10.73074562,217.07,217.02,6.58362896]
[1734381081507,10.73074562,217.06,217.0,6.5273]
[1734381082019,10.73074562,217.07,217.0,6.5273]
[1734381082226,10.73074562,217.06,216.99,1.5655]
[1734381083098,10.73074562,217.07,216.99,1.5655]
[1734381083302,10.73074562,217.07,216.99,8.80751411]
[1734381085422,8.3,217.1,217.0,23.776884]
[1734381085625,10.73074562,217.07,217.0,31.01889811]
[1734381086524,10.73074562,217.05,217.0,7.24201411]
[1734381090909,10.73074562,217.05,216.96,23.776884]
[1734381091110,10.73074562,217.03,216.95,13.82564307]
[1734381091514,10.73074562,217.03,216.95,7.24201411]
[1734381092110,20.0,217.05,216.95,7.24201411]
[1734381092418,10.73074562,217.04,216.95,7.24201411]
[1734381092610,20.0,217.05,216.96,23.776884]
[1734381092816,10.73074562,217.04,216.96,23.776884]
[1734381094514,8.3,217.07,216.96,23.776884]
[1734381094515,10.73074562,217.03,216.96,23.776884]
[1734381094714,10.73074562,216.99,216.95,7.24201411]
[1734381095018,1.80981151,217.12,216.94,8.0928]
[1734381095019,10.73074562,216.98,216.94,1.5655]
[1734381095703,10.73074562,216.95,216.9,7.24201411]
[1734381097529,10.73074562,216.95,216.89,1.5998]
[1734381098803,54.72876518,217.03,216.89,1.5998]
[1734381098804,10.73074562,216.93,216.89,1.5998]
[1734381099116,8.3,216.98,216.84,8.18342896]
[1734381099117,10.73074562,216.9,216.84,8.18342896]
[1734381099305,10.73074562,216.86,216.8,7.24201411]
[1734381099504,10.73074562,216.87,216.8,7.24201411]
[1734381099718,10.73074562,216.9,216.8,7.24201411]
[1734381100736,20.0,216.92,216.8,7.24201411]
[1734381100737,10.73074562,216.91,216.81,23.902374]
[1734381100931,20.0,216.91,216.81,0.12549]
[1734381101236,20.0,216.91,216.83,23.776884]
[1734381101614,10.73074562,216.92,216.83,23.776884]
[1734381101814,10.68761931,216.92,216.81,23.902374]
[1734381102238,10.73074562,216.91,216.81,23.902374]
[1734381103417,10.73074562,216.9,216.81,23.902374]
[1734381106640,10.73074562,216.89,216.81,23.776884]
[1734381106940,10.0,216.97,216.79,1.5998]
[1734381106941,10.73074562,216.86,216.79,1.5998]
[1734381107143,10.73074562,216.82,216.79,1.5998]
[1734381107520,10.73074562,216.82,216.76,6.1197]
[1734381108043,10.73074562,216.84,216.76,6.1197]
[1734381108344,8.3,216.85,216.76,6.1197]
[1734381108520,8.3,216.85,216.78,0.12549]
[1734381109644,10.73074562,216.9,216.82,1.5937]
[1734381109844,10.73074562,216.9,216.83,23.776884]
[1734381110241,16.81766944,216.89,216.83,23.776884]
[1734381111144,16.81766944,216.9,216.83,23.776884]
[1734381111440,16.81766944,216.92,216.83,23.776884]
[1734381111649,16.81766944,216.91,216.83,23.776884]
[1734381114035,16.81766944,216.93,216.84,0.12549]
[1734381114348,16.81766944,216.93,216.83,23.776884]
[1734381114349,16.81766944,216.91,216.83,23.776884]
[1734381115245,16.81766944,216.92,216.83,23.776884]
[1734381116244,16.81766944,216.93,216.84,0.12549]
[1734381117225,8.3,216.94,216.84,0.12549]
[1734381117226,16.81766944,216.92,216.84,0.12549]
[1734381118144,16.81766944,216.93,216.84,0.12549]
[1734381118729,16.81766944,216.91,216.84,0.12549]
[1734381120324,16.81766944,216.92,216.84,0.12549]
[1734381120523,8.3,216.97,216.86,23.902374]
[1734381120741,16.81766944,216.96,216.86,23.902374]
[1734381121053,16.81766944,216.94,216.86,23.902374]
[1734381121752,8.3,216.97,216.86,23.776884]
[1734381121953,16.81766944,216.94,216.86,23.776884]
[1734381123045,8.3,216.97,216.87,0.12549]
[1734381123236,8.3,216.97,216.87,13.14802196]
[1734381123237,25.11766944,216.97,216.87,13.14802196]
[1734381123558,25.11766944,216.97,216.88,23.776884]
[1734381124138,16.81766944,216.96,216.88,23.776884]
[1734381124547,8.3,216.98,216.87,0.12549]
[1734381124735,16.81766944,216.91,216.83,23.776884]
[1734381124934,16.81766944,216.91,216.82,1.5937]
[1734381125132,16.81766944,216.9,216.82,1.5937]
[1734381125336,16.81766944,216.86,216.82,1.5937]
[1734381126676,16.81766944,216.85,216.82,1.5937]
[1734381127034,8.3,216.9,216.82,1.5937]
[1734381127035,16.81766944,216.86,216.82,1.5937]
[1734381127489,16.81766944,216.87,216.82,1.5937]
[1734381127757,16.81766944,216.88,216.82,1.5937]
[1734381127957,16.81766944,216.87,216.82,1.5937]
[1734381128362,16.81766944,216.88,216.82,1.5937]
[1734381129240,16.81766944,216.87,216.82,1.5937]
[1734381129437,16.81766944,216.85,216.75,19.06583196]
[1734381129633,16.81766944,216.84,216.77,23.776884]
[1734381129831,16.81766944,216.84,216.76,1.6465]
[1734381130753,16.81766944,216.85,216.76,1.6465]
[1734381130955,25.11766944,216.88,216.78,0.12549]
[1734381131967,16.81766944,216.86,216.78,0.12549]
[1734381132351,10.7676778,216.86,216.78,0.12549]
[1734381133375,10.7676778,216.87,216.78,0.12549]
[1734381134065,10.7676778,216.85,216.76,14.66903196]
[1734381134267,10.7676778,216.84,216.76,14.66903196]
[1734381134458,10.7676778,216.84,216.76,1.6465]
[1734381135670,10.7676778,216.87,216.77,23.776884]
[1734381136073,10.7676778,216.83,216.76,1.6465]
[1734381136370,10.7676778,216.81,216.76,1.6465]
[1734381136676,19.0676778,216.81,216.76,1.6465]
[1734381137459,8.3,216.81,216.76,1.6465]
[1734381138378,10.7676778,216.77,216.71,1.638]
[1734381138681,10.7676778,216.78,216.71,1.638]
[1734381139089,19.0676778,216.79,216.71,1.638]
[1734381139501,10.7676778,216.78,216.71,1.638]
[1734381139856,10.7676778,216.76,216.71,1.638]
[1734381140075,8.3,216.77,216.71,1.638]
[1734381140777,10.7676778,216.76,216.7,98.71693942]
[1734381141371,10.7676778,216.75,216.7,98.71693942]
[1734381141565,19.0676778,216.71,216.7,98.71693942]
[1734381142963,8.3,216.75,216.7,98.71693942]
[1734381143370,19.0676778,216.75,216.7,98.71693942]
[1734381143579,10.7676778,216.73,216.7,98.71693942]
[1734381143862,8.3,216.75,216.7,98.71693942]
[1734381144062,10.7676778,216.73,216.7,98.71693942]
[1734381144287,8.3,216.75,216.7,98.71693942]
[1734381144474,10.7676778,216.73,216.7,98.71693942]
[1734381145184,8.3,216.75,216.7,98.71693942]
[1734381150464,19.0676778,216.75,216.7,98.71693942]
[1734381150664,10.7676778,216.74,216.7,98.71693942]
[1734381150885,10.7676778,216.73,216.7,98.71693942]
[1734381151469,10.7676778,216.71,216.7,98.71693942]
[1734381151699,21.5024,216.75,216.7,98.71693942]
[1734381151905,10.7676778,216.71,216.7,98.71693942]
[1734381155175,10.7676778,216.71,216.7,71.05506892]
[1734381155176,84.015463,216.71,216.7,71.05506892]
[1734381155382,60.238579,216.71,216.7,71.05506892]
[1734381157271,60.238579,216.71,216.7,43.39319842]
[1734381159080,60.238579,216.71,216.7,35.09319842]
[1734381159498,6.40019,216.71,216.7,7.42600905]
[1734381159715,17.1678678,216.71,216.7,7.42600905]
[1734381160210,17.1678678,216.71,216.7,6.52600905]
[1734381161179,16.28883258,216.71,216.7,6.52600905]
[1734381161595,20.0,216.68,216.57,0.5483133]
[1734381161810,0.1,216.65,216.57,0.5483133]
[1734381162694,0.1,216.7,216.57,25.0176399]
[1734381162911,0.1,216.76,216.58,1.5537]
[1734381163076,9.88864258,216.71,216.6,20.0]
[1734381163921,0.1,216.73,216.61,23.776884]
[1734381164276,9.88864258,216.72,216.61,23.776884]
[1734381165385,0.1,216.73,216.61,23.776884]
[1734381165699,9.98864258,216.73,216.61,23.776884]
[1734381166087,9.88864258,216.72,216.61,23.776884]
[1734381168194,9.88864258,216.69,216.59,20.0]
[1734381168591,9.88864258,216.7,216.59,20.0]
[1734381169179,0.1,216.69,216.59,20.0]
[1734381169391,9.88864258,216.68,216.6,23.776884]